bitfinex-derivatives/quotes_BTCF0:USTF0_20240820
["timestamp","ask_amount","ask_price","bid_price","bid_amount"]
[1724117980959,3.9273,60508.0,60507.0,0.002]
[1724117981549,3.9273,60508.0,60507.0,0.003]
[1724117981750,3.9393,60508.0,60507.0,0.003]
[1724117981956,3.9393,60508.0,60507.0,0.085606]
[1724117982157,3.8771,60508.0,60507.0,0.084606]
[1724117982359,3.8771,60508.0,60507.0,0.13372504]
[1724117983152,3.8771,60508.0,60507.0,0.084606]
[1724117985349,3.8771,60508.0,60507.0,0.002]
[1724117985549,4.2379,60508.0,60507.0,0.002]
[1724117985753,4.320504,60508.0,60507.0,0.002]
[1724117986168,4.320504,60508.0,60501.0,0.00024792]
[1724117986169,0.08261,60504.0,60501.0,0.00024792]
[1724117986861,3.77,60503.0,60501.0,0.36104792]
[1724117987553,3.77,60503.0,60501.0,0.36204792]
[1724117987757,3.77,60503.0,60501.0,0.36304792]
[1724117987964,3.77,60503.0,60502.0,0.082613]
[1724117988359,3.782,60503.0,60502.0,0.082613]
[1724117989469,3.782,60503.0,60502.0,0.083613]
[1724117989863,3.785,60503.0,60502.0,0.083613]
[1724117990663,3.782,60503.0,60502.0,0.083613]
[1724117990869,3.785,60503.0,60502.0,0.084613]
[1724117992764,3.785,60503.0,60502.0,0.445413]
[1724117993267,3.785,60503.0,60502.0,0.845413]
[1724117993567,3.785,60503.0,60502.0,1.54902724]
[1724117993870,3.784,60503.0,60502.0,1.0701873]
[1724117994062,3.784,60503.0,60502.0,0.988253]
[1724117994264,3.784,60503.0,60502.0,1.388253]
[1724117994458,3.784,60503.0,60502.0,0.988253]
[1724117995266,3.783,60503.0,60502.0,0.988253]
[1724117995459,3.783,60503.0,60502.0,1.1960364]
[1724117995669,0.013,60503.0,60502.0,1.1141021]
[1724117996064,0.013,60503.0,60502.0,0.5744249]
[1724117996271,0.013,60503.0,60502.0,1.11410229]
[1724117996472,0.013,60503.0,60502.0,1.51410229]
[1724117996871,3.77,60508.0,60507.0,0.082606]
[1724117997178,3.77,60508.0,60507.0,0.56925529]
[1724117998074,0.00024792,60514.0,60513.0,0.082598]
[1724117998277,0.06550273,60535.0,60527.0,0.082578]
[1724117998278,0.5894,60535.0,60527.0,0.082578]
[1724117998470,0.0942,60528.0,60527.0,0.082578]
[1724117998874,0.0942,60528.0,60527.0,0.14824239]
[1724117999779,0.1062,60528.0,60527.0,0.083578]
[1724117999972,0.1062,60528.0,60527.0,0.001]
[1724118000172,0.1062,60528.0,60527.0,0.06766439]
[1724118000373,0.1062,60528.0,60527.0,0.002]
[1724118001369,0.0573,60528.0,60527.0,0.002]
[1724118001772,0.0573,60528.0,60527.0,0.20990188]
[1724118001983,0.0573,60528.0,60527.0,0.08409934]
[1724118002179,0.0573,60528.0,60527.0,0.20990194]
[1724118002484,0.0573,60528.0,60527.0,0.20890194]
[1724118002783,0.0453,60528.0,60527.0,0.1278026]
[1724118002983,0.0453,60528.0,60527.0,0.08406837]
[1724118003379,0.0453,60528.0,60527.0,0.20987003]
[1724118003677,0.0453,60528.0,60527.0,0.08406837]
[1724118004281,0.0453,60528.0,60527.0,0.20987144]
[1724118004580,0.0453,60528.0,60527.0,0.002]
[1724118004883,0.05385954,60528.0,60527.0,0.002]
[1724118005480,0.05385954,60528.0,60527.0,0.084578]
[1724118005481,0.00855954,60528.0,60527.0,0.084578]
[1724118005684,0.04854792,60534.0,60532.0,0.082571]
[1724118005884,0.04854792,60534.0,60533.0,0.08257]
[1724118006281,0.04854792,60534.0,60531.0,0.06557263]
[1724118006282,0.08043644,60534.0,60530.0,0.3608]
[1724118006483,0.03188852,60533.0,60532.0,0.082572]
[1724118006687,0.03188852,60533.0,60530.0,0.3608]
[1724118006883,0.23099346,60533.0,60532.0,0.002]
[1724118007087,0.23099346,60533.0,60521.0,0.00024792]
[1724118007088,0.082585,60522.0,60521.0,0.00024792]
[1724118007290,0.082585,60522.0,60507.0,0.3229]
[1724118007291,4.3276042,60522.0,60507.0,0.3229]
[1724118007484,0.14796288,60517.0,60514.0,0.443396]
[1724118007785,0.17985875,60516.0,60514.0,0.3608]
[1724118007987,0.03189587,60515.0,60514.0,0.3608]
[1724118009177,0.03289587,60515.0,60514.0,0.3618]
[1724118009583,0.03389587,60515.0,60514.0,1.25856]
[1724118010092,0.00024792,60521.0,60514.0,1.25756]
[1724118010281,0.00024792,60521.0,60520.0,0.3608]
[1724118011287,0.00024792,60521.0,60520.0,1.339068]
[1724118012177,0.00024792,60521.0,60520.0,1.699868]
[1724118012582,0.00024792,60521.0,60520.0,0.804188]
[1724118012780,0.00024792,60521.0,60520.0,1.699868]
[1724118013088,0.00124792,60521.0,60520.0,1.30929631]
[1724118014390,0.00865723,60532.0,60531.0,0.082573]
[1724118014693,0.082561,60540.0,60534.0,0.082569]
[1724118014989,0.082561,60540.0,60536.0,0.40997598]
[1724118015690,3.77108792,60544.0,60537.0,0.04917598]
[1724118015887,0.14833528,60539.0,60538.0,0.082563]
[1724118016088,0.14833528,60539.0,60536.0,0.42636798]
[1724118016089,0.00024792,60544.0,60543.0,0.082557]
[1724118016285,0.00024792,60544.0,60543.0,0.443357]
[1724118017384,0.00024792,60544.0,60543.0,0.51709739]
[1724118017581,0.00024792,60544.0,60543.0,0.50878802]
[1724118017987,0.00024792,60544.0,60543.0,0.50978802]
[1724118018182,0.00024792,60544.0,60543.0,0.51078802]
[1724118018988,0.10310674,60551.0,60543.0,0.51078802]
[1724118018989,0.10310674,60551.0,60547.0,0.08255]
[1724118019287,0.10310674,60551.0,60547.0,0.04904892]
[1724118019596,3.77,60550.0,60546.0,0.04904892]
[1724118020393,3.77,60550.0,60549.0,0.082548]
[1724118020785,0.10310674,60551.0,60543.0,0.36304792]
[1724118020786,0.10310674,60551.0,60544.0,0.04904892]
[1724118021292,0.10310674,60551.0,60543.0,0.44560392]
[1724118021293,3.77,60549.0,60543.0,0.44560392]
[1724118021493,0.08255,60548.0,60547.0,0.001]
[1724118021792,3.77,60549.0,60547.0,0.001]
[1724118021793,3.77084,60549.0,60547.0,0.001]
[1724118022001,3.77,60549.0,60547.0,0.001]
[1724118022682,3.77,60549.0,60547.0,0.084551]
[1724118023091,3.77,60549.0,60547.0,0.002]
[1724118023396,3.77,60549.0,60547.0,0.3628]
[1724118023587,3.77,60549.0,60547.0,0.445351]
[1724118023783,3.77,60549.0,60548.0,0.44335]
[1724118025392,3.77,60549.0,60548.0,0.44435]
[1724118025991,0.04876166,60554.0,60553.0,0.082543]
[1724118026295,0.04876166,60554.0,60553.0,0.443343]
[1724118027794,0.0573002,60554.0,60553.0,0.443343]
[1724118028103,0.0573002,60554.0,60553.0,0.445343]
[1724118030592,0.0573002,60554.0,60553.0,0.444343]
[1724118030793,0.0573002,60554.0,60553.0,0.445343]
[1724118031189,0.04876166,60554.0,60553.0,0.445343]
[1724118031402,3.81876166,60554.0,60553.0,0.673943]
[1724118031702,3.77016166,60554.0,60553.0,0.673943]
[1724118033492,0.0964,60567.0,60553.0,0.673943]
[1724118033697,0.0964,60567.0,60566.0,0.443325]
[1724118034008,0.0964,60567.0,60566.0,0.49236669]
[1724118034199,0.0964,60567.0,60566.0,0.443325]
[1724118034394,0.048,60567.0,60566.0,0.443325]
[1724118034904,0.0486,60568.0,60566.0,0.50971393]
[1724118035106,0.0486,60568.0,60567.0,0.06538893]
[1724118035298,3.8182,60578.0,60575.0,0.082512]
[1724118035605,3.8182,60578.0,60566.0,0.3618]
[1724118035606,3.8182,60578.0,60577.0,0.3608]
[1724118035808,0.0482,60578.0,60577.0,0.3608]
[1724118037898,0.0482,60578.0,60577.0,0.3628]
[1724118038099,0.0482,60578.0,60571.0,0.2286]
[1724118038100,0.94344,60578.0,60571.0,0.082518]
[1724118038396,0.04915879,60572.0,60571.0,0.082518]
[1724118038594,0.06570029,60575.0,60571.0,0.082518]
[1724118039107,0.04916071,60575.0,60574.0,0.3608]
[1724118039302,0.11390029,60578.0,60574.0,0.3608]
[1724118040101,0.11390029,60578.0,60576.0,0.082511]
[1724118040301,0.06570029,60577.0,60576.0,0.082511]
[1724118041009,0.06570029,60577.0,60571.0,0.002]
[1724118041313,3.77,60576.0,60571.0,0.002]
[1724118041606,0.001,60575.0,60571.0,0.001]
[1724118041815,0.001,60575.0,60572.0,0.082517]
[1724118042105,3.77092,60576.0,60572.0,0.082517]
[1724118042306,3.77,60576.0,60572.0,0.082517]
[1724118042606,3.772,60576.0,60572.0,0.082517]
[1724118043113,0.001,60575.0,60572.0,0.082517]
[1724118044209,0.001,60575.0,60572.0,0.083517]
[1724118044815,3.77284,60576.0,60572.0,0.084517]
[1724118045111,0.001,60575.0,60572.0,0.084517]
[1724118045304,0.002,60575.0,60573.0,0.443315]
[1724118045500,0.002,60575.0,60574.0,0.082514]
[1724118045810,0.001,60575.0,60574.0,0.082514]
[1724118046810,0.002,60575.0,60574.0,0.082514]
[1724118047109,0.001,60575.0,60574.0,0.082514]
[1724118047713,0.001,60575.0,60574.0,0.0910312]
[1724118047902,0.002,60575.0,60574.0,0.0920312]
[1724118048303,3.772,60575.0,60574.0,0.0920312]
[1724118048498,3.771,60575.0,60574.0,0.083514]
[1724118048700,3.772,60575.0,60574.0,0.084514]
[1724118049917,3.772,60575.0,60574.0,0.002]
[1724118052715,3.772,60575.0,60574.0,0.084514]
[1724118054515,0.002,60575.0,60574.0,0.1335253]
[1724118054705,0.002,60575.0,60574.0,0.14986241]
[1724118054905,0.002,60575.0,60574.0,0.084514]
[1724118055113,3.772,60575.0,60574.0,0.084514]
[1724118055718,0.002,60575.0,60574.0,0.14986241]
[1724118055906,0.002,60575.0,60574.0,0.14987405]
[1724118056113,0.002,60575.0,60574.0,0.084514]
[1724118056713,3.772,60575.0,60574.0,0.084514]
[1724118057118,3.772,60575.0,60574.0,0.14984694]
[1724118057307,3.772,60575.0,60574.0,0.084514]
[1724118058020,3.772,60575.0,60574.0,0.14985041]
[1724118058420,3.772,60575.0,60574.0,0.084514]
[1724118058616,3.77,60575.0,60574.0,0.082514]
[1724118058813,3.77,60575.0,60574.0,0.084514]
[1724118058814,3.772,60575.0,60574.0,0.084514]
[1724118059820,3.772,60575.0,60574.0,0.445314]
[1724118060225,3.772,60575.0,60574.0,0.45397465]
[1724118062317,0.002,60575.0,60574.0,0.5030077]
[1724118062518,0.002,60575.0,60574.0,0.50303805]
[1724118062716,3.772,60575.0,60574.0,0.45397465]
[1724118063224,3.82125689,60575.0,60574.0,0.45397465]
[1724118063534,3.772,60575.0,60574.0,0.45397465]
[1724118064430,3.82143574,60575.0,60574.0,0.45397465]
[1724118064622,3.772,60575.0,60574.0,0.45397465]
[1724118064818,3.82144285,60575.0,60574.0,0.45397465]
[1724118065023,3.772,60575.0,60574.0,0.5193147]
[1724118065917,3.772,60575.0,60574.0,0.53648865]
[1724118065918,1e-06,60575.0,60574.0,0.53648865]
[1724118066119,0.04943161,60581.0,60574.0,1.01001405]
[1724118066327,0.04942801,60583.0,60580.0,0.5894]
[1724118066528,0.04942801,60586.0,60585.0,0.082499]
[1724118066720,0.1372,60595.0,60593.0,0.082488]
[1724118066925,0.14587887,60595.0,60594.0,0.42614693]
[1724118067328,3.91587887,60595.0,60594.0,0.3608]
[1724118067933,3.91587887,60595.0,60594.0,0.42617428]
[1724118068136,3.91587887,60595.0,60594.0,0.3608]
[1724118068329,3.91587887,60595.0,60588.0,0.00024771]
[1724118068330,3.96530688,60595.0,60590.0,0.06537428]
[1724118068526,3.96530688,60595.0,60594.0,0.04904945]
[1724118068745,3.91587887,60595.0,60593.0,0.04904945]
[1724118069035,3.91587887,60595.0,60593.0,0.05004945]
[1724118069238,3.91587887,60595.0,60588.0,0.00024771]
[1724118069239,0.082494,60589.0,60588.0,0.00024771]
[1724118069437,0.443294,60589.0,60588.0,0.00024771]
[1724118069632,0.04938966,60589.0,60588.0,0.36104771]
[1724118069937,0.04938966,60593.0,60588.0,0.36104771]
[1724118070142,4.04859553,60595.0,60593.0,0.001]
[1724118070435,3.91587887,60595.0,60593.0,0.05003654]
[1724118070640,3.91587887,60595.0,60594.0,0.04903654]
[1724118070839,3.96526853,60595.0,60593.0,0.002]
[1724118071140,3.91587887,60595.0,60593.0,0.05103654]
[1724118071337,3.96526853,60595.0,60593.0,0.002]
[1724118071532,3.91587887,60595.0,60593.0,0.002]
[1724118072133,3.91587887,60595.0,60593.0,0.05003654]
[1724118072836,4.41195887,60595.0,60593.0,0.002]
[1724118073036,0.49508,60594.0,60590.0,0.04900779]
[1724118073229,0.49508,60594.0,60588.0,0.36104771]
[1724118073230,0.082492,60591.0,60589.0,0.04900779]
[1724118074141,0.49512,60590.0,60589.0,0.04900779]
[1724118074346,0.49512,60590.0,60588.0,0.0492555]
[1724118074640,0.24695297,60589.0,60588.0,0.00024771]
[1724118074838,0.09899009,60589.0,60588.0,0.00024771]
[1724118075041,0.59415009,60589.0,60588.0,0.00024771]
[1724118076536,0.74225399,60589.0,60588.0,0.00024771]
[1724118076731,1.18554799,60589.0,60588.0,0.00124771]
[1724118076931,0.0825,60585.0,60582.0,0.3608]
[1724118077143,0.09899009,60584.0,60576.0,0.082511]
[1724118077332,0.14812078,60578.0,60577.0,0.08251]
[1724118077542,0.05860076,60578.0,60577.0,0.08251]
[1724118078341,0.2067272,60578.0,60577.0,0.08251]
[1724118078541,0.06712757,60578.0,60577.0,0.08251]
[1724118079647,0.06712757,60578.0,60577.0,0.08351]
[1724118079648,0.06812757,60578.0,60577.0,0.08351]
[1724118079839,0.07112757,60578.0,60577.0,0.08451]
[1724118080336,0.07012757,60578.0,60577.0,0.08451]
[1724118080540,0.07112757,60578.0,60577.0,0.08451]
[1724118081743,0.01252681,60578.0,60577.0,0.08451]
[1724118082735,0.004,60578.0,60577.0,0.08451]
[1724118083535,0.004,60578.0,60577.0,0.29188881]
[1724118083739,0.004,60578.0,60577.0,0.67848107]
[1724118083939,0.004,60578.0,60577.0,0.61445226]
[1724118084549,0.004,60578.0,60577.0,0.6144509]
[1724118084747,0.004,60578.0,60577.0,0.57100294]
[1724118084954,0.004,60578.0,60577.0,0.60631058]
[1724118085155,0.004,60578.0,60577.0,0.61444733]
[1724118085747,0.003,60578.0,60577.0,0.56959808]
[1724118085941,0.003,60578.0,60577.0,0.44431]
[1724118086137,0.003,60578.0,60577.0,0.61345096]
[1724118087748,0.003,60578.0,60577.0,0.62209613]
[1724118088644,0.003,60578.0,60577.0,0.70291193]
[1724118088949,0.003,60578.0,60577.0,0.57721831]
[1724118089152,0.002,60578.0,60577.0,0.49539561]
[1724118089446,0.003,60578.0,60577.0,0.62109392]
[1724118090150,0.001,60578.0,60577.0,0.62109392]
[1724118090349,0.003,60578.0,60577.0,0.62109392]
[1724118091052,0.003,60578.0,60577.0,0.71911653]
[1724118091642,0.00024701,60584.0,60583.0,0.082502]
[1724118091848,0.00024701,60584.0,60583.0,0.61242819]
[1724118092044,0.10708388,60608.0,60583.0,0.61242819]
[1724118092045,0.04940045,60604.0,60583.0,1.16649914]
[1724118092241,0.11525449,60608.0,60603.0,0.3608]
[1724118092447,0.17921755,60618.0,60603.0,0.3608]
[1724118092448,0.06585404,60611.0,60610.0,0.082465]
[1724118092643,0.0484,60618.0,60617.0,0.082456]
[1724118092846,0.0484,60618.0,60617.0,0.443256]
[1724118093345,0.00881758,60619.0,60617.0,0.443256]
[1724118093548,0.0965,60628.0,60617.0,0.443256]
[1724118093549,0.0484,60625.0,60617.0,0.3608]
[1724118094143,0.001,60618.0,60617.0,0.3618]
[1724118094952,0.002,60618.0,60617.0,0.3628]
[1724118095345,0.001,60618.0,60617.0,0.3618]
[1724118095548,0.3608,60624.0,60617.0,0.3618]
[1724118095748,0.3608,60624.0,60617.0,0.3628]
[1724118097157,0.3608,60624.0,60617.0,0.3618]
[1724118097358,0.3608,60624.0,60617.0,0.3628]
[1724118097860,0.3608,60624.0,60611.0,0.00024747]
[1724118097861,0.5894,60618.0,60611.0,0.00024747]
[1724118098153,0.443262,60613.0,60611.0,0.00024747]
[1724118098343,3.9102,60612.0,60611.0,0.00024747]
[1724118099147,3.9102,60612.0,60611.0,0.00124747]
[1724118099346,3.91880967,60612.0,60611.0,0.00224747]
[1724118099752,3.91880967,60612.0,60611.0,0.00024747]
[1724118099959,3.91980967,60612.0,60611.0,0.00224747]
[1724118100254,3.91980967,60612.0,60599.0,0.08248]
[1724118101254,0.082466,60610.0,60600.0,0.082479]
[1724118101460,0.082466,60610.0,60603.0,0.3608]
[1724118103154,0.085466,60610.0,60603.0,0.3618]
[1724118103352,0.088466,60610.0,60603.0,0.3628]
[1724118103652,0.088466,60610.0,60604.0,0.082473]
[1724118104457,0.088466,60610.0,60603.0,0.3628]
[1724118104458,0.006,60610.0,60609.0,0.3608]
[1724118104758,0.003,60610.0,60609.0,0.3608]
[1724118104948,0.006,60610.0,60609.0,0.3608]
[1724118105650,0.003,60610.0,60609.0,0.3608]
[1724118105851,0.00024667,60612.0,60610.0,0.082465]
[1724118106357,0.00024667,60612.0,60611.0,0.3608]
[1724118107253,0.00024667,60612.0,60611.0,1.25576]
[1724118107758,0.04940045,60624.0,60623.0,0.082448]
[1724118108055,0.3608,60630.0,60621.0,0.3608]
[1724118108056,0.05817434,60630.0,60621.0,0.3608]
[1724118108259,0.047,60639.0,60621.0,0.3608]
[1724118108260,0.04909012,60632.0,60629.0,0.3608]
[1724118108451,0.047,60639.0,60632.0,0.082435]
[1724118108452,0.00856145,60634.0,60632.0,0.082435]
[1724118108649,0.09609012,60639.0,60632.0,0.082435]
[1724118108650,0.047,60639.0,60632.0,0.082435]
[1724118108852,0.047,60639.0,60631.0,0.3608]
[1724118108853,0.04909012,60638.0,60631.0,0.3608]
[1724118109058,0.13817283,60639.0,60625.0,0.082444]
[1724118109059,0.40989012,60636.0,60627.0,0.00024747]
[1724118109247,0.04909012,60633.0,60627.0,0.00024747]
[1724118109454,0.04909012,60631.0,60627.0,0.00024747]
[1724118109650,0.0458,60632.0,60627.0,0.00024747]
[1724118109651,0.09489012,60632.0,60627.0,0.00024747]
[1724118110954,0.04909012,60631.0,60627.0,0.00024747]
[1724118111357,0.04909012,60631.0,60627.0,0.00224747]
[1724118111752,0.05474254,60632.0,60627.0,0.00224747]
[1724118111951,0.05674254,60632.0,60627.0,0.00224747]
[1724118112157,0.3608,60630.0,60627.0,0.00224747]
[1724118112460,0.3608,60630.0,60627.0,0.00124747]
[1724118112757,0.3608,60630.0,60627.0,0.00224747]
[1724118112956,0.3608,60630.0,60607.0,0.3229]
[1724118112957,0.4948,60629.0,60607.0,0.3229]
[1724118113175,0.3608,60612.0,60607.0,0.3229]
[1724118113463,0.1434,60611.0,60599.0,0.443279]
[1724118113756,3.77,60610.0,60599.0,0.45216293]
[1724118114065,0.082468,60609.0,60600.0,0.082478]
[1724118115353,0.082468,60609.0,60601.0,0.082477]
[1724118115566,0.085468,60609.0,60601.0,0.082477]
[1724118115954,0.088468,60609.0,60601.0,0.082477]
[1724118116349,0.088468,60609.0,60605.0,0.3608]
[1724118116350,0.006,60609.0,60605.0,0.3608]
[1724118116959,0.006,60609.0,60606.0,0.3608]
[1724118117357,0.003,60609.0,60606.0,0.3608]
[1724118117561,0.007,60609.0,60606.0,0.3608]
[1724118118262,0.01569455,60609.0,60607.0,0.082469]
[1724118118566,0.09816155,60609.0,60606.0,0.001]
[1724118118949,0.09816155,60609.0,60606.0,0.002]
[1724118119555,0.09816155,60609.0,60607.0,0.001]
[1724118119754,0.06478467,60609.0,60607.0,0.001]
[1724118119950,0.007,60609.0,60607.0,0.083469]
[1724118120154,0.007,60609.0,60607.0,0.082469]
[1724118120355,0.007,60609.0,60607.0,0.1477376]
[1724118120553,0.00024747,60611.0,60607.0,0.1477376]
[1724118120554,0.00024747,60611.0,60609.0,0.082467]
[1724118120755,0.00024747,60611.0,60610.0,0.4075]
[1724118122067,0.00324747,60611.0,60610.0,0.4085]
[1724118122253,0.00424747,60611.0,60610.0,0.4095]
[1724118123062,0.00424747,60611.0,60610.0,0.42801228]
[1724118123454,0.00424747,60611.0,60610.0,0.3628]
[1724118123654,0.00424747,60611.0,60610.0,0.42801228]
[1724118123863,0.00424747,60611.0,60610.0,0.3628]
[1724118124054,0.01287083,60611.0,60610.0,0.3628]
[1724118124256,0.00424747,60611.0,60610.0,0.3628]
[1724118124554,0.00424747,60611.0,60610.0,0.002]
[1724118124957,0.09824747,60611.0,60610.0,0.002]
[1724118125159,0.14424747,60611.0,60610.0,0.002]
[1724118125956,0.63920747,60611.0,60610.0,0.002]
[1724118126359,0.63920747,60611.0,60602.0,0.082476]
[1724118126360,0.73032479,60611.0,60602.0,0.082476]
[1724118126558,0.23536479,60611.0,60602.0,0.082476]
[1724118126755,0.082466,60610.0,60602.0,0.082476]
[1724118126957,0.04909012,60603.0,60602.0,0.082476]
[1724118127161,0.04909012,60603.0,60598.0,0.00024747]
[1724118127162,0.06585404,60603.0,60598.0,0.00024747]
[1724118127369,0.04928872,60601.0,60600.0,0.3608]
[1724118127661,0.04928872,60601.0,60598.0,0.00024747]
[1724118127662,0.082479,60600.0,60598.0,0.00024747]
[1724118128059,3.77,60599.0,60598.0,0.00024747]
[1724118128456,3.77,60599.0,60598.0,0.00324747]
[1724118128658,0.082479,60600.0,60598.0,0.00324747]
[1724118128963,0.09144941,60600.0,60598.0,0.00324747]
[1724118129159,3.77,60599.0,60598.0,0.00324747]
[1724118129553,3.77,60599.0,60598.0,0.00424747]
[1724118129960,3.77,60599.0,60598.0,0.36504747]
[1724118130165,0.004,60599.0,60598.0,0.36304747]
[1724118130668,0.004,60599.0,60598.0,0.44552947]
[1724118130854,0.14024747,60611.0,60600.0,0.082479]
[1724118130855,0.04950752,60611.0,60600.0,0.082479]
[1724118131057,0.00024747,60611.0,60610.0,0.443265]
[1724118131255,0.04926005,60623.0,60622.0,0.082449]
[1724118131571,0.0476,60631.0,60629.0,0.082439]
[1724118131572,0.0451,60631.0,60629.0,0.082439]
[1724118131760,0.0451,60631.0,60630.0,0.3608]
[1724118132764,0.0581,60631.0,60630.0,0.3608]
[1724118134768,0.0451,60631.0,60630.0,0.3608]
[1724118135067,0.0451,60631.0,60630.0,0.3628]
[1724118135068,0.0571,60631.0,60630.0,0.3628]
[1724118135466,0.012,60631.0,60630.0,0.3628]
[1724118141365,0.00885979,60637.0,60630.0,0.3618]
[1724118141567,0.0495,60639.0,60635.0,0.3608]
[1724118141974,3.77,60638.0,60635.0,0.3608]
[1724118142674,0.012,60637.0,60635.0,0.443231]
[1724118144179,3.782,60638.0,60635.0,0.444231]
[1724118144862,0.012,60637.0,60635.0,0.445231]
[1724118145368,3.77,60638.0,60635.0,0.3618]
[1724118145573,3.782,60638.0,60637.0,0.082429]
[1724118145787,0.012,60638.0,60637.0,0.082429]
[1724118146169,0.04926005,60658.0,60636.0,0.285]
[1724118146374,3.8194,60654.0,60644.0,0.3608]
[1724118146564,3.8194,60654.0,60651.0,0.082409]
[1724118147264,3.8194,60654.0,60647.0,0.082414]
[1724118148066,3.8194,60654.0,60651.0,0.001]
[1724118148767,3.8194,60654.0,60641.0,0.6837]
[1724118148768,3.82835185,60654.0,60641.0,0.766122]
[1724118148972,0.082412,60649.0,60641.0,0.6837]
[1724118149269,0.082412,60649.0,60647.0,0.002]
[1724118149778,0.082412,60649.0,60647.0,0.001]
[1724118150573,0.082412,60649.0,60641.0,0.6837]
[1724118150771,0.3608,60651.0,60644.0,0.082419]
[1724118150973,0.3608,60651.0,60641.0,0.68474]
[1724118151271,3.92459785,60654.0,60641.0,0.68474]
[1724118151272,3.91259785,60654.0,60647.0,0.3608]
[1724118151475,3.91075785,60654.0,60649.0,0.082412]
[1724118152174,0.011,60651.0,60649.0,0.082412]
[1724118152377,0.013,60651.0,60649.0,0.082412]
[1724118152576,0.002,60651.0,60649.0,0.082412]
[1724118152765,0.002,60651.0,60649.0,0.083412]
[1724118153167,0.002,60651.0,60649.0,0.082412]
[1724118153375,0.013,60651.0,60649.0,0.083412]
[1724118153978,0.013,60651.0,60649.0,0.084412]
[1724118153979,0.011,60651.0,60649.0,0.084412]
[1724118154180,0.011,60651.0,60642.0,0.0462]
[1724118154181,0.577051,60650.0,60639.0,0.00024747]
[1724118154386,0.082425,60640.0,60639.0,0.00024747]
[1724118155479,0.083425,60640.0,60639.0,0.00124747]
[1724118155975,0.090425,60640.0,60639.0,0.00124747]
[1724118156967,0.089425,60640.0,60639.0,0.00124747]
[1724118157282,0.091425,60640.0,60639.0,0.00224747]
[1724118157579,0.084425,60640.0,60639.0,0.00124747]
[1724118157773,0.103317,60640.0,60639.0,0.00124747]
[1724118157973,0.106317,60640.0,60639.0,0.00224747]
[1724118158175,0.023892,60640.0,60639.0,0.00224747]
[1724118158677,0.015,60640.0,60639.0,0.00224747]
[1724118158867,0.015,60640.0,60639.0,0.08467347]
[1724118160194,0.015,60640.0,60639.0,0.21023391]
[1724118160476,0.0478,60651.0,60639.0,0.63115587]
[1724118160477,0.00895953,60649.0,60639.0,0.63115587]
[1724118160670,3.77084,60655.0,60650.0,0.08241]
[1724118160875,3.77,60655.0,60650.0,0.13126841]
[1724118161071,3.77,60655.0,60651.0,0.04885841]
[1724118161578,3.77868848,60655.0,60651.0,0.04885841]
[1724118161882,0.04926005,60654.0,60649.0,0.06514939]
[1724118162080,3.77868848,60655.0,60651.0,0.04886229]
[1724118162081,0.3608,60653.0,60651.0,0.04886229]
[1724118162284,0.3608,60653.0,60650.0,0.001]
[1724118162477,0.3608,60653.0,60649.0,0.04886229]
[1724118162671,0.3608,60653.0,60651.0,0.001]
[1724118163688,0.443207,60653.0,60651.0,0.001]
[1724118164293,0.443207,60653.0,60651.0,0.002]
[1724118165183,0.02671571,60652.0,60651.0,0.002]
[1724118165576,0.25471571,60652.0,60651.0,0.002]
[1724118166682,0.33712371,60652.0,60651.0,0.001]
[1724118166982,0.33712371,60652.0,60651.0,0.002]
[1724118167384,0.33812371,60652.0,60651.0,0.002]
[1724118167592,0.33812371,60652.0,60651.0,0.001]
[1724118167776,0.33812371,60652.0,60651.0,0.002]
[1724118168486,0.36895449,60652.0,60651.0,0.001]
[1724118168694,0.33812463,60652.0,60651.0,0.002]
[1724118169579,0.69892463,60652.0,60651.0,0.002]
[1724118170389,0.69892362,60652.0,60651.0,0.002]
[1724118170787,0.082411,60650.0,60644.0,0.082419]
[1724118170982,0.08226169,60647.0,60644.0,0.082419]
[1724118171187,0.08226169,60645.0,60644.0,0.082419]
[1724118171584,0.09871403,60648.0,60644.0,0.082419]
[1724118171788,0.08227223,60645.0,60643.0,0.3608]
[1724118171989,0.082418,60645.0,60644.0,0.04894435]
[1724118172485,0.082418,60645.0,60644.0,0.001]
[1724118172486,0.083418,60645.0,60644.0,0.001]
[1724118173296,0.083418,60645.0,60644.0,0.002]
[1724118173493,0.083418,60645.0,60639.0,0.00024747]
[1724118173494,0.082425,60640.0,60639.0,0.06539686]
[1724118173699,0.082425,60640.0,60628.0,0.3229]
[1724118173700,0.7488,60640.0,60634.0,0.04896392]
[1724118174000,0.7488,60640.0,60625.0,0.082444]
[1724118174001,0.082438,60630.0,60629.0,0.04896392]
[1724118174189,0.3608,60635.0,60625.0,0.06514939]
[1724118174190,0.082441,60628.0,60625.0,0.06514939]
[1724118174385,0.082441,60628.0,60619.0,0.00104]
[1724118174386,0.082441,60628.0,60623.0,0.06514939]
[1724118174588,0.13182606,60628.0,60623.0,0.06514939]
[1724118174785,0.04938506,60627.0,60622.0,0.06514939]
[1724118174989,0.04938506,60627.0,60619.0,0.00716975]
[1724118174990,0.04938506,60628.0,60623.0,0.06514939]
[1724118175193,0.09648506,60629.0,60624.0,0.06514939]
[1724118175394,0.4173816,60630.0,60627.0,0.04896833]
[1724118175592,0.36799654,60630.0,60628.0,0.04896833]
[1724118176498,0.4173816,60630.0,60626.0,0.04896833]
[1724118176996,0.00719654,60630.0,60626.0,0.04896833]
[1724118177198,0.002,60629.0,60626.0,0.04896833]
[1724118177397,0.002,60629.0,60625.0,0.13141333]
[1724118177601,0.002,60629.0,60627.0,0.001]
[1724118177801,0.084439,60630.0,60627.0,0.001]
[1724118177992,0.0471,60629.0,60626.0,0.001]
[1724118178197,0.0471,60629.0,60626.0,0.002]